Cogmind - Beta 14 @@@ ROGUE MODE // 2024.10.21 @ 00:26:24 Player: ToasterKoishi Result: Destroyed by P-60 Hacker with Shock Rifle Performance ------------- Evolutions (2) 1000 Regions Visited (5) 1000 Robots Destroyed (0) 0 Value Destroyed (0) 0 Prototype IDs (0) 0 Alien Tech Used (0) 0 Bonus (470) 470 TOTAL SCORE: 2470 Bonus ------- Pacifist 470 Cogmind --------- Core Integrity 0/550 Matter 271/300 Energy 80/100 System Corruption 5% Temperature Cool (0) Movement Flying (35) Location -8/Recycling Parts ------- > --- POWER (1) -------- (None) > --- PROPULSION (4) --- VTOL Module > --- UTILITY (4) ------ (None) > --- WEAPON (2) ------- (None) > --- INVENTORY (5) ---- VTOL Module Improved Signal Interpreter Seismic Detector Improved Utility Shielding Peak State ------------ > --- POWER ------------ (None) > --- PROPULSION ------- (None) > --- UTILITY ---------- System Shield System Shield System Shield System Shield > --- WEAPON ----------- (None) > --- INVENTORY -------- Seismic Detector [Rating: 12] Favorites ----------- Power None Propulsion VTOL Module Flight Unit VTOL Module Utility System Shield Hackware System Shield Weapon None Build | -11 -10 -9 -8 -8 -8 ------- Run | Yrd Mat Mat Mat Sto Rec Slots Evolved 4 | . . 2 2 . . Power . | . . . . . . Propulsion 2 | . . 1 1 . . Utility 2 | . . 1 1 . . Weapon . | . . . . . . Parts Attached 7 | . . . . 4 3 Power . | . . . . . . Engine . | . . . . . . Core . | . . . . . . Reactor . | . . . . . . Propulsion 3 | . . . . . 3 Treads . | . . . . . . Leg . | . . . . . . Wheel . | . . . . . . Hover . | . . . . . . Flight 3 | . . . . . 3 Utility 4 | . . . . 4 . Device . | . . . . . . Storage . | . . . . . . Processor . | . . . . . . Hackware 4 | . . . . 4 . Protection . | . . . . . . Artifact . | . . . . . . Weapon . | . . . . . . Energy Gun . | . . . . . . Energy Cannon . | . . . . . . Ballistic Gun . | . . . . . . Ballistic Cannon . | . . . . . . Launcher . | . . . . . . Special Weapon . | . . . . . . Impact Weapon . | . . . . . . Slashing Weapon . | . . . . . . Piercing Weapon . | . . . . . . Special Melee Weapon . | . . . . . . Unidentified Prototypes . | . . . . . . Parts Lost 6 | . . . . 4 2 Power . | . . . . . . Propulsion 2 | . . . . . 2 Utility 4 | . . . . 4 . Weapon . | . . . . . . Highest Loss Streak 3 | . . . . 3 2 To Critical Strikes . | . . . . . . Average Slot Usage (%) 6 | . . . . 20 3 Hackware 5 | . . . . 20 . Peak Build Rating 12 | . . 1 1 12 5 Average Rating 2 | . . . 1 6 . On Entrance . | . . . 1 1 . Naked Turns 259 | . 41 134 11 22 51 Heaviest Build . | . . . . . . Greatest Support 8 | 3 3 3 3 3 8 Greatest Overweight (x) . | . . . . . . Average Overweight (x) . | . . . . . . Largest Inventory Capacity 5 | 5 5 5 5 5 5 Average Capacity 5 | 5 5 5 5 5 5 Most Carried 5 | . 1 5 5 5 5 Average Carried 2 | . . 3 5 1 3 Final Capacity 5 | 5 5 5 5 5 5 Final Carried 5 | . 1 5 5 2 4 Class Distribution -------------------- 86% | Mutant 13% | Hacker-Mutant Dominant Class ---------------- Mutant | -10/Materials Mutant | -9/Materials Mutant | -8/Materials Hacker-Mutant | -8/Storage Mutant | -8/Recycling Resources | -11 -10 -9 -8 -8 -8 ----------- Run | Yrd Mat Mat Mat Sto Rec Matter Collected 161 | 133 . . . 28 . Remotely . | . . . . . . Salvage Created . | . . . . . . Parts . | . . . . . . Haulers Intercepted . | . . . . . . Recyclers Shooed . | . . . . . . Parts Field Recycled . | . . . . . . Retrieved Matter . | . . . . . . Parts Self-Destructed . | . . . . . . Prevented . | . . . . . . Kills | -11 -10 -9 -8 -8 -8 ------- Run | Yrd Mat Mat Mat Sto Rec Combat Hostiles Destroyed . | . . . . . . Classes Destroyed . | . . . . . . Best Kill Streak . | . . . . . . Combat Bots Only . | . . . . . . Max Kills in Single Turn . | . . . . . . Gunslinging . | . . . . . . Exploded . | . . . . . . Melee . | . . . . . . Uniques/NPCs Destroyed . | . . . . . . Combat | -11 -10 -9 -8 -8 -8 -------- Run | Yrd Mat Mat Mat Sto Rec Hostile Shots Fired 111 | . . 38 . 50 23 Missed 47 | . . 14 . 24 9 Damage Taken 988 | . . 351 . 420 217 Core 908 | . . 351 . 371 186 Absorbed by Shields . | . . . . . . Core Remaining (%) 70 | 100 100 12 . . . Volleys Fired . | . . . . . . Largest . | . . . . . . Hottest . | . . . . . . Shots Fired . | . . . . . . Gun . | . . . . . . Cannon . | . . . . . . Launcher . | . . . . . . Special . | . . . . . . Kinetic . | . . . . . . Thermal . | . . . . . . Explosive . | . . . . . . Electromagnetic . | . . . . . . Robot Hit Streak . | . . . . . . Robot Miss Streak . | . . . . . . Penetration Max . | . . . . . . Secondary Targets . | . . . . . . Shots Hit Robots . | . . . . . . Core Hits 1 | . . . . 1 . Critical Kills . | . . . . . . Critical Parts Destroyed . | . . . . . . Critical Strikes . | . . . . . . Melee Attacks . | . . . . . . Impact . | . . . . . . Slashing . | . . . . . . Piercing . | . . . . . . Sneak Attacks . | . . . . . . Combat Hostiles . | . . . . . . Follow-up Attacks . | . . . . . . Damage Inflicted 101 | . . 31 . 70 . Guns . | . . . . . . Cannons . | . . . . . . Explosions . | . . . . . . Melee . | . . . . . . Ramming 101 | . . 31 . 70 . Kinetic . | . . . . . . Thermal . | . . . . . . Explosive . | . . . . . . Electromagnetic . | . . . . . . Impact . | . . . . . . Slashing . | . . . . . . Piercing . | . . . . . . Highest Corruption 4 | . . 1 . 4 4 Average Corruption 2 | . . 1 . 2 4 Corruption Purged . | . . . . . . Corruption Blocked . | . . . . . . Effects 3 | . . . . 2 1 Matter Fused 1 | . . . . . 1 Heat Flow Errors 1 | . . . . 1 . Alerts 1 | . . . . 1 . Overload Shots . | . . . . . . Overflow Damage . | . . . . . . Projectiles . | . . . . . . Explosions . | . . . . . . Melee . | . . . . . . Knockbacks . | . . . . . . Impact . | . . . . . . Kinetic . | . . . . . . Secondary . | . . . . . . Self-Inflicted Damage 45 | . . 13 . 32 . Shots . | . . . . . . Rammed 25 | . . 13 . 12 . Targets Rammed 25 | . . 13 . 12 . Kicked . | . . . . . . Crushed . | . . . . . . Highest Temperature 253 | . . . . 253 . Average Temperature 129 | . . . . 129 . Received Heat Transfer 258 | . . 150 . 99 9 Siege Activations . | . . . . . . Robots Corrupted . | . . . . . . Combat Hostiles . | . . . . . . Parts Fried . | . . . . . . Impact Corruptions . | . . . . . . Robots Melted . | . . . . . . Combat Hostiles . | . . . . . . Parts Melted . | . . . . . . Heat Transferred . | . . . . . . Parts Sabotaged . | . . . . . . Parts Stolen . | . . . . . . Parts Stripped . | . . . . . . Power Chain Reactions . | . . . . . . Alert | -11 -10 -9 -8 -8 -8 ------- Run | Yrd Mat Mat Mat Sto Rec Peak Influence 200 | . 15 200 84 75 51 Initial 84 | . . 5 84 35 21 Average 55 | . 12 86 84 47 34 Maximum Alert Level 1 | . . 1 . . . Low Security (%) 98 | 100 100 96 100 100 100 Level 1 1 | . . 3 . . . Level 2 . | . . . . . . Level 3 . | . . . . . . Level 4 . | . . . . . . Level 5 . | . . . . . . High Security . | . . . . . . Max Security . | . . . . . . Squads Dispatched 2 | . . 2 . . . Investigation . | . . . . . . Extermination . | . . . . . . Reinforcement 2 | . . 2 . . . Assault . | . . . . . . Garrison . | . . . . . . Intercept . | . . . . . . Searches Triggered . | . . . . . . Construction Impeded . | . . . . . . Haulers Reinforced . | . . . . . . Active Scanning Responses . | . . . . . . Cargo Convoy Interrupts . | . . . . . . Stealth | -11 -10 -9 -8 -8 -8 --------- Run | Yrd Mat Mat Mat Sto Rec Distress Signals 4 | . . 2 . 2 . Communications Jammed . | . . . . . . Distress Signals . | . . . . . . Times Spotted 38 | . 3 14 . 12 9 Peak Tracking Total 11 | . 3 11 . 9 6 Tactical Retreats 5 | . . 3 . 1 1 Traps | -11 -10 -9 -8 -8 -8 ------- Run | Yrd Mat Mat Mat Sto Rec Traps Triggered 3 | . . . . 3 . Indirectly . | . . . . . . Trap Hack Attempts . | . . . . . . Triggered . | . . . . . . Disarmed . | . . . . . . Reprogrammed . | . . . . . . Reused . | . . . . . . Traps Extracted . | . . . . . . Installed . | . . . . . . Triggered . | . . . . . . Machines | -11 -10 -9 -8 -8 -8 ---------- Run | Yrd Mat Mat Mat Sto Rec Machines Disabled . | . . . . . . Max in Single Turn . | . . . . . . Machines Repaired . | . . . . . . Machines Dismantled . | . . . . . . Machines Sabotaged . | . . . . . . Overloaded Fab Kills . | . . . . . . Hacking | -11 -10 -9 -8 -8 -8 --------- Run | Yrd Mat Mat Mat Sto Rec Machines Accessed 1 | . . . . 1 . Terminals 1 | . . . . 1 . Fabricators . | . . . . . . Repair Stations . | . . . . . . Recycling Units . | . . . . . . Scanalyzers . | . . . . . . Garrison Access . | . . . . . . Total Hacks 1 | . . . . 1 . Successful 1 | . . . . 1 . Failed . | . . . . . . Catastrophic . | . . . . . . Database Lockouts . | . . . . . . Manual 1 | . . . . 1 . Terminals 1 | . . . . 1 . Fabricators . | . . . . . . Repair Stations . | . . . . . . Recycling Units . | . . . . . . Scanalyzers . | . . . . . . Garrison Access . | . . . . . . Terminal Hacks 1 | . . . . 1 . Branch Access Points 1 | . . . . 1 . Fabricator Hacks . | . . . . . . Repair Station Hacks . | . . . . . . Recycling Unit Hacks . | . . . . . . Scanalyzer . | . . . . . . Garrison Access Hacks . | . . . . . . Unauthorized Hacks . | . . . . . . Terminals . | . . . . . . Fabricators . | . . . . . . Repair Stations . | . . . . . . Recycling Units . | . . . . . . Scanalyzers . | . . . . . . Garrison Access . | . . . . . . Data Cores Recovered . | . . . . . . Used . | . . . . . . Hacking Detections 1 | . . . . 1 . Full Trace Events . | . . . . . . Feedback Events . | . . . . . . Feedback Blocked . | . . . . . . Robot Schematics Acquired . | . . . . . . Robots Built . | . . . . . . Authchips . | . . . . . . Time . | . . . . . . Total Robot Build Rating . | . . . . . . Part Schematics Acquired . | . . . . . . Parts Built . | . . . . . . Authchips . | . . . . . . Time . | . . . . . . Total Part Build Rating . | . . . . . . Parts Repaired . | . . . . . . Time . | . . . . . . Parts Recycled . | . . . . . . Recycled Matter . | . . . . . . Retrieved Matter . | . . . . . . Retrieved Components . | . . . . . . Parts Scanalyzed . | . . . . . . Part Schematics Acquired . | . . . . . . Parts Damaged . | . . . . . . Bothacking | -11 -10 -9 -8 -8 -8 ------------ Run | Yrd Mat Mat Mat Sto Rec Used RIF Installer . | . . . . . . Robots Hacked . | . . . . . . Non-combat . | . . . . . . Combat . | . . . . . . Robot Hacks Applied . | . . . . . . Relay Couplers Released . | . . . . . . Fabnet Peak Effective % . | . . . . . . Robots Rewired . | . . . . . . Allies Hacked . | . . . . . . Hacks Repelled . | . . . . . . Allies | -11 -10 -9 -8 -8 -8 -------- Run | Yrd Mat Mat Mat Sto Rec Total Allies . | . . . . . . Largest Group . | . . . . . . Highest-Rated Group . | . . . . . . Highest-Rated Ally . | . . . . . . Total Orders . | . . . . . . Ally Attacks . | . . . . . . Total Damage . | . . . . . . Kills . | . . . . . . Allies Corrupted . | . . . . . . Allies Melted . | . . . . . . Intel | -11 -10 -9 -8 -8 -8 ------- Run | Yrd Mat Mat Mat Sto Rec Robot Analysis Total . | . . . . . . Derelict Logs Recovered . | . . . . . . Drone Launches . | . . . . . . Drone Recoveries . | . . . . . . Exploration | -11 -10 -9 -8 -8 -8 ------------- Run | Yrd Mat Mat Mat Sto Rec Turns Passed 353 | 9 41 134 11 91 67 Spaces Moved 635 | 18 80 234 22 148 133 Core 599 | 18 80 234 22 148 97 Treads . | . . . . . . Legs . | . . . . . . Wheels . | . . . . . . Hover . | . . . . . . Flight 36 | . . . . . 36 Fastest Speed 32 | 50 50 50 50 50 32 Average Speed 49 | 50 50 50 50 50 45 Slowest Speed 50 | 50 50 50 50 50 50 Overloaded Moves . | . . . . . . Propulsion Burnouts . | . . . . . . Robots Hopped . | . . . . . . Cave-ins Triggered . | . . . . . . Exploration Rate (%) 23 | 3 26 33 3 39 34 Regions Visited 5 Branch Regions 2 Pre-discovered Areas . | . . . . . . Known Exits Taken 1 | . . . . 1 . Unknown Exits Taken 4 | 1 1 1 1 . . Scrap Searched . | . . . . . . Spaces Dug . | . . . . . . Terrain Destroyed . | . . . . . . Melee . | . . . . . . Projectile . | . . . . . . AOE . | . . . . . . Terrain Rammed . | . . . . . . Walls Destroyed . | . . . . . . Machines Disabled . | . . . . . . Actions | -11 -10 -9 -8 -8 -8 --------- Run | Yrd Mat Mat Mat Sto Rec Total 671 | 17 80 250 21 164 139 Wait . | . . . . . . Move 630 | 17 79 233 21 147 133 Hop . | . . . . . . Pick Up 9 | . 1 4 . 1 3 Fast Attach 2 | . . . . . 2 Attach 5 | . . . . 4 1 Detach . | . . . . . . Swap . | . . . . . . Drop . | . . . . . . Fire . | . . . . . . Melee . | . . . . . . Ram 25 | . . 13 . 12 . Kick . | . . . . . . Crush . | . . . . . . Escape Stasis . | . . . . . . Rewire . | . . . . . . Trap . | . . . . . . Miscellaneous . | . . . . . . Route ------- -11/Scrapyard -10/Materials (discovered 2 exits: [*Mat] / [*Min]) -9/Materials -8/Materials -8/Storage -8/Recycling History --------- Turn | Location | Event 3 | -11/Scrapyard | Discovered new exit (range 16) 10 | -11/Scrapyard | Entered Materials 28 | -10/Materials | Discovered new exit (range 9) 45 | -10/Materials | Discovered new exit (range 14) 51 | -10/Materials | Entered another Materials area 51 | -9/Materials | Evolved 2 slots: Propulsion x1, Utility x1 107 | -9/Materials | Core integrity fell below 50% 176 | -9/Materials | Core integrity fell below 20% 181 | -9/Materials | Discovered new exit (range 9) 185 | -9/Materials | Entered another Materials area 185 | -8/Materials | Evolved 2 slots: Propulsion x1, Utility x1 189 | -8/Materials | Discovered new exit (range 15) 196 | -8/Materials | Entered Storage 216 | -8/Storage | Identified exit to Recycling 242 | -8/Storage | Core integrity fell below 50% 285 | -8/Storage | Used back door to open Recycling access 287 | -8/Storage | Entered Recycling 301 | -8/Recycling | Core integrity fell below 20% 312 | -8/Recycling | Lost 3 parts (3u) 354 | -8/Recycling | Destroyed by P-60 Hacker with Shock Rifle Last Messages --------------- 00285_ Access granted. >>\\IAMDERELICT Access granted. LOCATION=RECYCLING GOAL=ESCAPE 00290_ P-60 Hacker springs to life. 00291_ G-47 Trooper springs to life. 00291_ L-31 Rogue destroyed. 00291_ Acquired Imp. Utility Shielding. 00292_ D-53 Grenadier springs to life. 00292_ P-60 Hacker springs to life. 00335_ System corrupted: Matter fused (-9). 00337_ Acquired VTOL Module. 00350_ G-47 Trooper springs to life. 00350_ H-55 Commando springs to life. 00350_ Slug penetrates Wall. 00350_ Y-45 Defender springs to life. 00350_ VTOL Module destroyed. 00353_ Slug penetrates Wall. 00353_ VTOL Module destroyed. Map ----- +----------------------------------------------------+ | | | | | | | | | | | | | | | | | | | ?????????????????????????????????????????????????? | | ?????????????????????????????????????????????????? | | ?????????????????????????????????????????????????? | | ?????????????????????????????????????????????????? | | ?????????????????????????????????????????????????? | | ?????????????????????????????????????????????????? | | ?????????????????????????????????????????????????? | | ?????????????????????????????????????????????????? | | ?????????????????????????????????????????????????? | | ?????????????????????????????????????????????????? | | ?????????????????????????????????????????????????? | | ?????????????????????????????????????????????????? | | ?????????????????????????????????????????????????? | | ??????????????????????????#####???????############ | | ??????????????????#???????#"""#???????! =/ % | | ????????????????# #Y#######"Y"#######! | | ????????????????# @ # ! ! [ | | ????????????????# pp g ! %! = | | ??????????????#########/######### #########????? | | ?????????###### #?# ##?#####????????????? | | ?????????# ##= ### #??????????????????? | | ?????????# + ##??????????????????? | | ?????????# ######## #???????????????????? | | ?????????## ##??????# #???????????????????? | | ??????????# #???????# #??????????????????? | | ?????????## ##?###### ##??????????????????? | | ?????????# ### ## #???????????????????? | | ?????????+ ## #???????????????????? | | ?????????# ### ######+####???????????????????? | | ?????????## ##?## ##????# #??????????????????????? | | ??????????# #???# #?????# #??????????????????????? | | ??????????# #???# #?????# #??????????????????????? | | ??????????# #???# ####### #??????????????????????? | | ??????????# #???# #??????????????????????? | | ?????????? #?### ######?????????????????? | | ??????????###?#"" #?????????????????? | | ??????????????#"Y #######???????????? | | ??????????????#"" ?????????? | | ??????????????### ######????????????? | | ????????????????# ##"Y"## ""#???????????????? | | ????????????????# ##"""## Y"#???????????????? | +----------------------------------------------------+ Best States ------------- Heat Dissipation 31 Energy Generation 5 Energy Capacity 100 Matter Stores 300 Matter Capacity 300 Sight Range 16 Terrain Scan Density 10 Evasion (%) 63 Defensive Hacking 40 Item Schematics ----------------- None Robot Schematics ------------------ None Fabricated ------------ Nothing Alien Tech Used ----------------- None Achievements -------------- None Challenges ------------ None Game ------ Seed AngularMassWings Manual? 0 Play Time 00:05:59 Cumulative 98.1 hours Start 2024.10.21 @ 00:21:34 End 2024.10.21 @ 00:26:24 Sessions 1 Manual Loads 0 Difficulty Rogue Special Mode None Game No. 127 Rogue 127 Adventurer 0 Explorer 0 Win Type - Total 13 Types 12/0/1/0/0/0/0/0/0 Lore% 36 Gallery% 48 Achievement% 50 Wizard Run 0 Options --------- Layout 0 ASCII 0 Keyboard 1 Movement Numpad Keybinds 0 Fullscreen 2 Font 18/SmallcapsGlow Map View 112x50 Zoom Use 0% Tactical HUD 1 Map Filters NONE Filters NONE Steam 1 RUN: 5af57846-e829-4bd0-b536-971f95bb84a1